[Event "Championnat d'Europe Rapide"]
[Date "2024.12.07"]
[White "Tweedie, Steven"]
[Black "Subelj, Jan"]
[WhiteElo "2172"]
[BlackElo "2526"]
[Round "3.37"]
[Result "0-1"]
[TimeControl "900+10"]

1. e4 {[%emt 00:00:03] [%clk 00:15:17]} c6 {[%emt 00:00:03] [%clk 00:15:16]} 2.
Nc3 {[%emt 00:00:04] [%clk 00:15:23]} d5 {[%emt 00:00:10] [%clk 00:15:16]} 3. d3
{[%emt 00:00:07] [%clk 00:15:26]} e5 {[%emt 00:00:33] [%clk 00:14:53]} 4. Nf3
{[%emt 00:00:29] [%clk 00:15:06]} Nf6 {[%emt 00:01:05] [%clk 00:13:58]} 5. Bd2
{[%emt 00:00:39] [%clk 00:14:37]} Bd6 {[%emt 00:00:10] [%clk 00:13:58]} 6. g3
{[%emt 00:00:13] [%clk 00:14:34]} O-O {[%emt 00:00:23] [%clk 00:13:46]} 7. Bg2
{[%emt 00:00:01] [%clk 00:14:42]} dxe4 {[%emt 00:00:23] [%clk 00:13:33]} 8. dxe4
{[%emt 00:00:12] [%clk 00:14:40]} h6 {[%emt 00:00:06] [%clk 00:13:38]} 9. O-O
{[%emt 00:00:07] [%clk 00:14:43]} Be6 {[%emt 00:00:03] [%clk 00:13:45]} 10. h3
{[%emt 00:00:27] [%clk 00:14:26]} Qe7 {[%emt 00:00:10] [%clk 00:13:44]} 11. Qe2
{[%emt 00:00:28] [%clk 00:14:07]} Nbd7 {[%emt 00:00:06] [%clk 00:13:47]} 12.
Rad1 {[%emt 00:00:32] [%clk 00:13:46]} a5 {[%emt 00:00:03] [%clk 00:13:54]} 13.
b3 {[%emt 00:00:20] [%clk 00:13:37]} Nc5 {[%emt 00:00:07] [%clk 00:13:57]} 14.
a4 {[%emt 00:00:47] [%clk 00:13:01]} Na6 {[%emt 00:00:30] [%clk 00:13:37]} 15.
Nh4 {[%emt 00:00:40] [%clk 00:12:29]} Nb4 {[%emt 00:00:03] [%clk 00:13:45]} 16.
Bc1 {[%emt 00:00:35] [%clk 00:12:04]} Bc5 {[%emt 00:00:06] [%clk 00:13:50]} 17.
Nf5 {[%emt 00:00:58] [%clk 00:11:16]} Bxf5 {[%emt 00:00:02] [%clk 00:13:58]} 18.
exf5 {[%emt 00:00:01] [%clk 00:11:25]} Rad8 {[%emt 00:00:02] [%clk 00:14:06]}
19. Ne4 {[%emt 00:01:11] [%clk 00:10:23]} Nxe4 {[%emt 00:00:04] [%clk 00:14:12]}
20. Bxe4 {[%emt 00:00:30] [%clk 00:10:04]} Na2 {[%emt 00:00:56] [%clk 00:13:26]}
21. Qf3 {[%emt 00:02:06] [%clk 00:08:08]} Nxc1 {[%emt 00:00:34] [%clk 00:13:02]}
22. Rxc1 {[%emt 00:00:06] [%clk 00:08:13]} Rd2 {[%emt 00:00:02] [%clk 00:13:09]}
23. Rcd1 {[%emt 00:00:48] [%clk 00:07:35]} Rfd8 {[%emt 00:00:02] [%clk
00:13:18]} 24. Rxd2 {[%emt 00:00:48] [%clk 00:06:57]} Rxd2 {[%emt 00:00:02]
[%clk 00:13:26]} 25. f6 {[%emt 00:00:27] [%clk 00:06:40]} Qxf6 {[%emt 00:00:15]
[%clk 00:13:20]} 26. Qxf6 {[%emt 00:00:03] [%clk 00:06:48]} gxf6 {[%clk
00:13:28]} 27. Kg2 {[%emt 00:01:37] [%clk 00:05:21]} Kf8 {[%emt 00:00:12] [%clk
00:13:27]} 28. Kf3 {[%emt 00:00:04] [%clk 00:05:27]} Ke7 {[%emt 00:00:23] [%clk
00:13:13]} 29. Bd3 {[%emt 00:00:19] [%clk 00:05:19]} Bd4 {[%emt 00:00:22] [%clk
00:13:00]} 30. g4 {[%emt 00:00:41] [%clk 00:04:48]} Ke6 {[%emt 00:00:27] [%clk
00:12:42]} 31. Kg3 {[%emt 00:00:11] [%clk 00:04:48]} Kd5 {[%emt 00:00:04] [%clk
00:12:47]} 32. Bc4+ {[%emt 00:00:34] [%clk 00:04:24]} Kc5 {[%emt 00:00:02] [%clk
00:12:56]} 33. Bd3 {[%emt 00:00:01] [%clk 00:04:32]} Kb4 {[%emt 00:00:20] [%clk
00:12:46]} 34. f4 {[%emt 00:00:05] [%clk 00:04:37]} b5 {[%emt 00:00:23] [%clk
00:12:34]} 35. axb5 {[%emt 00:00:44] [%clk 00:04:03]} cxb5 {[%emt 00:00:01]
[%clk 00:12:43]} 36. fxe5 {[%emt 00:00:01] [%clk 00:04:12]} Bxe5+ {[%emt
00:00:02] [%clk 00:12:51]} 37. Kf3 {[%emt 00:00:05] [%clk 00:04:17]} Rxd3+
{[%emt 00:00:08] [%clk 00:12:53]} 38. cxd3 {[%emt 00:00:02] [%clk 00:04:25]}
Kxb3 {[%emt 00:00:01] [%clk 00:13:01]} 39. Ke4 {[%emt 00:00:08] [%clk 00:04:27]}
Bc3 {[%emt 00:01:25] [%clk 00:11:46]} 40. Rb1+ {[%emt 00:01:04] [%clk 00:03:34]}
Bb2 {[%emt 00:00:01] [%clk 00:11:55]} 41. d4 {[%clk 00:03:43]} a4 {[%clk
00:12:04]} 42. d5 {[%emt 00:00:13] [%clk 00:03:40]} a3 {[%emt 00:00:10] [%clk
00:12:03]} 43. d6 {[%emt 00:00:03] [%clk 00:03:48]} a2 {[%emt 00:00:01] [%clk
00:12:12]} 44. Rf1 {[%emt 00:00:55] [%clk 00:03:03]} Ba3 {[%emt 00:00:02] [%clk
00:12:19]} 45. d7 {[%emt 00:00:03] [%clk 00:03:11]} Be7 {[%emt 00:00:01] [%clk
00:12:27]} 46. Rf3+ {[%emt 00:01:09] [%clk 00:02:12]} Ka4 {[%emt 00:00:02] [%clk
00:12:35]} 47. Rf1 {[%emt 00:00:03] [%clk 00:02:19]} b4 {[%emt 00:00:02] [%clk
00:12:43]} 48. Kd3 {[%emt 00:00:05] [%clk 00:02:25]} b3 {[%emt 00:00:19] [%clk
00:12:34]} 49. Kc3 {[%emt 00:00:37] [%clk 00:01:57]} f5 {[%emt 00:00:04] [%clk
00:12:40]} 50. Rd1 {[%emt 00:00:27] [%clk 00:01:40]} fxg4 {[%emt 00:00:51] [%clk
00:11:59]} 51. hxg4 {[%emt 00:00:07] [%clk 00:01:43]} Ka3 {[%emt 00:00:01] [%clk
00:12:08]} 52. Kc4 {[%emt 00:00:32] [%clk 00:01:21]} Kb2 {[%emt 00:01:08] [%clk
00:11:10]} 53. Re1 {[%emt 00:00:50] [%clk 00:00:41]} a1=Q {[%emt 00:01:00] [%clk
00:10:20]} 54. Rxa1 {[%emt 00:00:07] [%clk 00:00:44]} Kxa1 {[%emt 00:00:02]
[%clk 00:10:29]} 55. Kxb3 {[%clk 00:00:53]} Kb1 {[%emt 00:00:06] [%clk
00:10:32]} 56. Kc3 {[%emt 00:00:39] [%clk 00:00:25]} Kc1 {[%emt 00:00:02] [%clk
00:10:39]} 57. Kd3 {[%emt 00:00:02] [%clk 00:00:33]} Kd1 {[%emt 00:00:01] [%clk
00:10:47]} 58. Ke3 {[%emt 00:00:06] [%clk 00:00:38]} Ke1 {[%emt 00:00:01] [%clk
00:10:56]} 59. Kf3 {[%emt 00:00:02] [%clk 00:00:47]} Kf1 {[%emt 00:00:01] [%clk
00:11:04]} 60. Kg3 {[%emt 00:00:25] [%clk 00:00:32]} Ke2 {[%emt 00:00:03] [%clk
00:11:11]} 0-1

[Site "Europe Echecs"]

[Event "Championnat d'Europe Rapide"]
[Date "2024.12.07"]
[White "Muradli, Mahammad"]
[Black "Pipiras, Filipa Fortuna"]
[WhiteElo "2588"]
[BlackElo "2178"]
[Round "3.38"]
[Result "1-0"]
[TimeControl "900+10"]

1. Nf3 {[%emt 00:02:16] [%clk 00:13:01]} Nf6 {[%emt 00:00:13] [%clk 00:15:09]}
2. c4 {[%emt 00:00:02] [%clk 00:13:09]} e6 {[%emt 00:00:13] [%clk 00:15:06]} 3.
g3 {[%emt 00:00:07] [%clk 00:13:12]} d5 {[%emt 00:00:03] [%clk 00:15:12]} 4. Bg2
{[%emt 00:00:02] [%clk 00:13:21]} dxc4 {[%emt 00:00:32] [%clk 00:14:50]} 5. Qa4+
{[%emt 00:00:03] [%clk 00:13:28]} Nbd7 {[%emt 00:00:06] [%clk 00:14:53]} 6. Qxc4
{[%emt 00:00:10] [%clk 00:13:30]} c5 {[%emt 00:00:13] [%clk 00:14:50]} 7. Qc2
{[%emt 00:00:31] [%clk 00:13:09]} Bd6 {[%emt 00:01:16] [%clk 00:13:45]} 8. O-O
{[%emt 00:00:22] [%clk 00:12:57]} O-O {[%emt 00:00:04] [%clk 00:13:50]} 9. d4
{[%emt 00:00:04] [%clk 00:13:03]} Qe7 {[%emt 00:00:51] [%clk 00:13:09]} 10. Nc3
{[%emt 00:00:34] [%clk 00:12:39]} a6 {[%emt 00:00:23] [%clk 00:12:57]} 11. Rd1
{[%emt 00:00:04] [%clk 00:12:45]} Ra7 {[%emt 00:01:04] [%clk 00:12:03]} 12. dxc5
{[%emt 00:01:44] [%clk 00:11:11]} Nxc5 {[%emt 00:00:42] [%clk 00:11:31]} 13. Be3
{[%emt 00:00:52] [%clk 00:10:29]} b6 {[%emt 00:00:42] [%clk 00:10:59]} 14. b4
{[%emt 00:00:57] [%clk 00:09:43]} Ncd7 {[%emt 00:00:07] [%clk 00:11:01]} 15. Nd4
{[%emt 00:00:17] [%clk 00:09:37]} Nb8 {[%emt 00:01:03] [%clk 00:10:07]} 16. b5
{[%emt 00:00:12] [%clk 00:09:35]} Rc7 {[%emt 00:00:38] [%clk 00:09:40]} 17. Nc6
{[%emt 00:00:31] [%clk 00:09:14]} Nxc6 {[%emt 00:00:05] [%clk 00:09:45]} 18.
bxc6 {[%emt 00:00:02] [%clk 00:09:22]} Bc5 {[%emt 00:00:26] [%clk 00:09:29]} 19.
Bf4 {[%emt 00:00:42] [%clk 00:08:50]} e5 {[%emt 00:00:12] [%clk 00:09:27]} 20.
Bg5 {[%emt 00:00:02] [%clk 00:08:59]} Be6 {[%emt 00:01:32] [%clk 00:08:05]} 21.
e3 {[%emt 00:02:00] [%clk 00:07:09]} h6 {[%emt 00:00:27] [%clk 00:07:47]} 22.
Bxf6 {[%emt 00:00:04] [%clk 00:07:15]} Qxf6 {[%emt 00:00:09] [%clk 00:07:48]}
23. a4 {[%emt 00:01:25] [%clk 00:06:01]} Qe7 {[%emt 00:01:18] [%clk 00:06:40]}
24. Nd5 {[%emt 00:01:50] [%clk 00:04:21]} Bxd5 {[%emt 00:00:03] [%clk 00:06:47]}
25. Bxd5 {[%emt 00:00:02] [%clk 00:04:30]} a5 {[%emt 00:00:12] [%clk 00:06:45]}
26. Rd3 {[%emt 00:00:48] [%clk 00:03:52]} Qf6 {[%emt 00:00:31] [%clk 00:06:24]}
27. Rad1 {[%emt 00:00:13] [%clk 00:03:49]} h5 {[%emt 00:00:37] [%clk 00:05:56]}
28. Be4 {[%emt 00:00:23] [%clk 00:03:37]} h4 {[%emt 00:01:58] [%clk 00:04:08]}
29. Rd7 {[%emt 00:00:02] [%clk 00:03:45]} Rfc8 {[%emt 00:00:55] [%clk 00:03:23]}
30. Qe2 {[%emt 00:00:39] [%clk 00:03:16]} g6 {[%emt 00:00:15] [%clk 00:03:18]}
31. Qg4 {[%emt 00:00:08] [%clk 00:03:18]} Kg7 {[%emt 00:01:18] [%clk 00:02:10]}
32. gxh4 {[%emt 00:00:22] [%clk 00:03:05]} Be7 {[%emt 00:00:26] [%clk 00:01:55]}
33. h5 {[%emt 00:00:17] [%clk 00:02:58]} Rxd7 {[%emt 00:00:13] [%clk 00:01:53]}
34. Rxd7 {[%emt 00:00:03] [%clk 00:03:06]} Kh6 {[%emt 00:00:39] [%clk 00:01:23]}
35. hxg6 {[%emt 00:00:09] [%clk 00:03:06]} Rg8 {[%emt 00:00:23] [%clk 00:01:10]}
36. Qh3+ {[%emt 00:00:09] [%clk 00:03:08]} Kg7 {[%emt 00:00:42] [%clk 00:00:38]}
37. Qh7+ {[%emt 00:00:04] [%clk 00:03:14]} Kf8 {[%emt 00:00:02] [%clk 00:00:46]}
38. c7 {[%emt 00:00:02] [%clk 00:03:22]} Qg5+ {[%emt 00:00:40] [%clk 00:00:16]}
39. Kf1 {[%emt 00:00:04] [%clk 00:03:29]} 1-0

[Site "Europe Echecs"]

[Event "Championnat d'Europe Rapide"]
[Date "2024.12.07"]
[White "Narva, Triin"]
[Black "Larkin, Vladyslav"]
[WhiteElo "2064"]
[BlackElo "2449"]
[Round "3.39"]
[Result "0-1"]
[TimeControl "900+10"]

1. e4 {[%emt 00:00:02] [%clk 00:15:18]} c5 {[%emt 00:00:02] [%clk 00:15:19]} 2.
Nf3 {[%emt 00:00:01] [%clk 00:15:26]} e6 {[%emt 00:00:02] [%clk 00:15:27]} 3. c3
{[%emt 00:00:05] [%clk 00:15:31]} Nf6 {[%emt 00:00:03] [%clk 00:15:34]} 4. e5
{[%emt 00:00:06] [%clk 00:15:35]} Nd5 {[%emt 00:00:02] [%clk 00:15:43]} 5. d4
{[%emt 00:00:20] [%clk 00:15:24]} cxd4 {[%emt 00:00:02] [%clk 00:15:51]} 6. Nxd4
{[%emt 00:00:08] [%clk 00:15:25]} Qc7 {[%emt 00:00:48] [%clk 00:15:13]} 7. f4
{[%emt 00:01:11] [%clk 00:14:24]} d6 {[%emt 00:01:15] [%clk 00:14:08]} 8. Nb5
{[%emt 00:00:47] [%clk 00:13:47]} Qb6 {[%emt 00:00:01] [%clk 00:14:17]} 9. c4
{[%emt 00:06:09] [%clk 00:07:48]} Ne3 {[%emt 00:00:07] [%clk 00:14:20]} 10. Qb3
{[%emt 00:00:08] [%clk 00:07:51]} Nf5 {[%emt 00:00:27] [%clk 00:14:02]} 11.
Nxd6+ {[%emt 00:02:43] [%clk 00:05:18]} Nxd6 {[%emt 00:00:05] [%clk 00:14:07]}
12. Qxb6 {[%emt 00:00:03] [%clk 00:05:25]} axb6 {[%emt 00:00:02] [%clk
00:14:16]} 13. exd6 {[%emt 00:00:02] [%clk 00:05:33]} Bxd6 {[%emt 00:00:02]
[%clk 00:14:24]} 14. Nc3 {[%emt 00:00:21] [%clk 00:05:23]} Ke7 {[%emt 00:01:15]
[%clk 00:13:19]} 15. Be3 {[%emt 00:00:51] [%clk 00:04:42]} Bc5 {[%emt 00:00:02]
[%clk 00:13:27]} 16. Kf2 {[%emt 00:00:08] [%clk 00:04:44]} Rd8 {[%emt 00:00:37]
[%clk 00:13:00]} 17. Be2 {[%emt 00:00:54] [%clk 00:04:00]} Rd2 {[%emt 00:00:29]
[%clk 00:12:40]} 18. b4 {[%emt 00:00:57] [%clk 00:03:13]} Bxe3+ {[%emt 00:00:36]
[%clk 00:12:14]} 19. Kxe3 {[%emt 00:00:02] [%clk 00:03:21]} Rb2 {[%emt 00:00:09]
[%clk 00:12:15]} 20. Rab1 {[%emt 00:01:00] [%clk 00:02:31]} Rxb1 {[%emt
00:00:06] [%clk 00:12:19]} 21. Rxb1 {[%emt 00:00:01] [%clk 00:02:40]} Bd7 {[%emt
00:01:07] [%clk 00:11:23]} 22. a4 {[%emt 00:00:43] [%clk 00:02:07]} Bc6 {[%emt
00:00:39] [%clk 00:10:53]} 23. g3 {[%emt 00:00:06] [%clk 00:02:11]} Nd7 {[%emt
00:00:03] [%clk 00:11:00]} 24. b5 {[%emt 00:01:25] [%clk 00:00:55]} Bg2 {[%emt
00:00:01] [%clk 00:11:08]} 25. Rg1 {[%emt 00:00:01] [%clk 00:01:04]} Bh3 {[%emt
00:00:03] [%clk 00:11:15]} 26. g4 {[%emt 00:00:02] [%clk 00:01:13]} h5 {[%emt
00:00:10] [%clk 00:11:14]} 27. gxh5 {[%emt 00:00:14] [%clk 00:01:10]} Kf8 {[%clk
00:11:23]} 28. Bf3 {[%emt 00:00:52] [%clk 00:00:28]} Nc5 {[%emt 00:00:07] [%clk
00:11:26]} 29. Rd1 {[%emt 00:00:06] [%clk 00:00:32]} Ke7 {[%emt 00:00:32] [%clk
00:11:03]} 30. Rg1 {[%emt 00:00:21] [%clk 00:00:20]} Kf6 {[%emt 00:00:48] [%clk
00:10:25]} 31. Ne4+ {[%emt 00:00:09] [%clk 00:00:22]} Nxe4 {[%emt 00:00:04]
[%clk 00:10:32]} 32. Bxe4 {[%emt 00:00:01] [%clk 00:00:30]} Rxa4 {[%emt
00:00:02] [%clk 00:10:41]} 33. Kd4 {[%emt 00:00:22] [%clk 00:00:17]} Ra7 {[%clk
00:10:50]} 34. Rg5 {[%emt 00:00:12] [%clk 00:00:16]} Bf1 {[%emt 00:00:07] [%clk
00:10:52]} 35. h4 {[%emt 00:00:12] [%clk 00:00:14]} Ra4 {[%emt 00:00:35] [%clk
00:10:27]} 36. Bxb7 {[%emt 00:00:02] [%clk 00:00:21]} Bxc4 {[%emt 00:00:19]
[%clk 00:10:18]} 37. Kc3 {[%emt 00:00:15] [%clk 00:00:16]} Be2 {[%emt 00:00:01]
[%clk 00:10:26]} 38. Re5 {[%emt 00:00:04] [%clk 00:00:22]} Bf1 {[%emt 00:00:15]
[%clk 00:10:22]} 39. Be4 {[%emt 00:00:08] [%clk 00:00:24]} Bxb5 {[%emt 00:00:09]
[%clk 00:10:23]} 40. Bc2 {[%emt 00:00:16] [%clk 00:00:18]} Rc4+ {[%emt 00:00:14]
[%clk 00:10:20]} 41. Kb3 {[%emt 00:00:03] [%clk 00:00:25]} Rc5 {[%emt 00:00:01]
[%clk 00:10:29]} 42. Rg5 {[%emt 00:00:21] [%clk 00:00:14]} Be2 {[%emt 00:00:08]
[%clk 00:10:30]} 43. h6 {[%emt 00:00:11] [%clk 00:00:13]} gxh6 {[%emt 00:00:04]
[%clk 00:10:36]} 44. Rg2 {[%emt 00:00:04] [%clk 00:00:19]} Bf3 {[%emt 00:00:19]
[%clk 00:10:28]} 45. Rg3 {[%emt 00:00:15] [%clk 00:00:14]} Bd5+ {[%emt 00:00:06]
[%clk 00:10:32]} 46. Kb2 {[%clk 00:00:23]} Rc4 {[%emt 00:00:07] [%clk 00:10:36]}
47. f5 {[%emt 00:00:20] [%clk 00:00:13]} Rxh4 {[%emt 00:00:08] [%clk 00:10:38]}
48. fxe6 {[%emt 00:00:02] [%clk 00:00:21]} fxe6 {[%emt 00:00:01] [%clk
00:10:47]} 49. Kc3 {[%emt 00:00:11] [%clk 00:00:20]} Ke5 {[%emt 00:00:06] [%clk
00:10:50]} 50. Bd3 {[%emt 00:00:10] [%clk 00:00:20]} h5 {[%emt 00:00:12] [%clk
00:10:48]} 51. Rg7 {[%emt 00:00:14] [%clk 00:00:16]} Rh3 {[%emt 00:00:05] [%clk
00:10:53]} 52. Kd2 {[%emt 00:00:02] [%clk 00:00:25]} Kd4 {[%emt 00:00:03] [%clk
00:11:00]} 53. Bb5 {[%emt 00:00:09] [%clk 00:00:26]} Rh2+ {[%emt 00:00:02] [%clk
00:11:09]} 54. Ke1 {[%clk 00:00:35]} h4 {[%emt 00:00:14] [%clk 00:11:05]} 0-1

[Site "Europe Echecs"]

[Event "Championnat d'Europe Rapide"]
[Date "2024.12.07"]
[White "Peyrer, Konstantin"]
[Black "Sirigos, Nikolaos"]
[WhiteElo "2440"]
[BlackElo "2044"]
[Round "3.40"]
[Result "1-0"]
[TimeControl "900+10"]

1. Nf3 {[%emt 00:00:02] [%clk 00:15:17]} Nf6 {[%emt 00:00:02] [%clk 00:15:19]}
2. c4 {[%emt 00:00:02] [%clk 00:15:25]} g6 {[%emt 00:00:02] [%clk 00:15:27]} 3.
g3 {[%emt 00:00:02] [%clk 00:15:33]} Bg7 {[%emt 00:00:02] [%clk 00:15:35]} 4.
Bg2 {[%emt 00:00:01] [%clk 00:15:42]} O-O {[%emt 00:00:03] [%clk 00:15:42]} 5.
d4 {[%emt 00:00:04] [%clk 00:15:48]} d6 {[%emt 00:00:03] [%clk 00:15:49]} 6. Nc3
{[%emt 00:00:02] [%clk 00:15:56]} Nc6 {[%emt 00:00:06] [%clk 00:15:53]} 7. d5
{[%emt 00:00:02] [%clk 00:16:05]} Na5 {[%emt 00:00:07] [%clk 00:15:57]} 8. b3
{[%emt 00:00:01] [%clk 00:16:13]} c5 {[%emt 00:00:04] [%clk 00:16:04]} 9. Bb2
{[%emt 00:00:01] [%clk 00:16:22]} a6 {[%emt 00:00:12] [%clk 00:16:02]} 10. O-O
{[%emt 00:00:04] [%clk 00:16:27]} Rb8 {[%emt 00:00:02] [%clk 00:16:10]} 11. Nd2
{[%emt 00:00:04] [%clk 00:16:33]} b5 {[%emt 00:00:04] [%clk 00:16:17]} 12. Qc1
{[%clk 00:16:41]} Bh6 {[%emt 00:00:44] [%clk 00:15:43]} 13. e3 {[%emt 00:00:02]
[%clk 00:16:50]} e5 {[%emt 00:00:02] [%clk 00:15:51]} 14. dxe6 {[%emt 00:00:16]
[%clk 00:16:44]} fxe6 {[%emt 00:01:01] [%clk 00:15:00]} 15. Nde4 {[%emt
00:00:17] [%clk 00:16:36]} Nxe4 {[%emt 00:01:54] [%clk 00:13:16]} 16. Nxe4
{[%emt 00:00:02] [%clk 00:16:44]} bxc4 {[%emt 00:00:04] [%clk 00:13:22]} 17. Rd1
{[%emt 00:00:19] [%clk 00:16:34]} d5 {[%emt 00:01:26] [%clk 00:12:05]} 18. Qc3
{[%emt 00:00:16] [%clk 00:16:29]} d4 {[%emt 00:00:02] [%clk 00:12:14]} 19. exd4
{[%emt 00:00:01] [%clk 00:16:38]} Bg7 {[%emt 00:00:01] [%clk 00:12:23]} 20. Nxc5
{[%emt 00:00:03] [%clk 00:16:45]} Qf6 {[%emt 00:01:07] [%clk 00:11:26]} 21. Ne4
{[%emt 00:01:01] [%clk 00:15:53]} Qf5 {[%emt 00:00:12] [%clk 00:11:25]} 22. Ba3
{[%emt 00:01:11] [%clk 00:14:51]} Bb7 {[%emt 00:01:05] [%clk 00:10:30]} 23. Bxf8
{[%emt 00:00:06] [%clk 00:14:55]} Rxf8 {[%emt 00:00:04] [%clk 00:10:37]} 24. Qe3
{[%emt 00:00:06] [%clk 00:14:58]} cxb3 {[%emt 00:00:19] [%clk 00:10:28]} 25. Nd6
{[%emt 00:00:12] [%clk 00:14:56]} b2 {[%emt 00:00:39] [%clk 00:10:00]} 26. Nxf5
{[%emt 00:00:05] [%clk 00:15:00]} bxa1=Q {[%emt 00:00:06] [%clk 00:10:02]} 27.
Ne7+ {[%emt 00:00:13] [%clk 00:14:58]} Kf7 {[%emt 00:00:15] [%clk 00:09:56]} 28.
Rxa1 {[%emt 00:00:03] [%clk 00:15:06]} Bxg2 {[%emt 00:00:27] [%clk 00:09:40]}
29. Kxg2 {[%emt 00:00:02] [%clk 00:15:14]} Kxe7 {[%emt 00:00:12] [%clk
00:09:38]} 30. Qa3+ {[%emt 00:00:02] [%clk 00:15:22]} 1-0

[Site "Europe Echecs"]

[Event "Championnat d'Europe Rapide"]
[Date "2024.12.07"]
[White "Skreno, Vladimir"]
[Black "Paichadze, Luka"]
[WhiteElo "2067"]
[BlackElo "2532"]
[Round "3.41"]
[Result "0-1"]
[TimeControl "900+10"]

1. d4 {[%emt 00:00:02] [%clk 00:15:17]} Nf6 {[%clk 00:15:19]} 2. Nf3 {[%emt
00:00:01] [%clk 00:15:25]} e6 {[%emt 00:00:04] [%clk 00:15:26]} 3. Bg5 {[%emt
00:00:10] [%clk 00:15:25]} d5 {[%emt 00:00:10] [%clk 00:15:27]} 4. e3 {[%emt
00:00:29] [%clk 00:15:05]} c5 {[%emt 00:00:05] [%clk 00:15:33]} 5. c3 {[%emt
00:00:03] [%clk 00:15:11]} Nbd7 {[%emt 00:00:21] [%clk 00:15:23]} 6. Nbd2 {[%emt
00:00:24] [%clk 00:14:57]} Qc7 {[%emt 00:00:39] [%clk 00:14:54]} 7. Bb5 {[%emt
00:01:14] [%clk 00:13:53]} a6 {[%emt 00:00:53] [%clk 00:14:12]} 8. Bxd7+ {[%emt
00:00:23] [%clk 00:13:39]} Nxd7 {[%emt 00:00:32] [%clk 00:13:50]} 9. Bf4 {[%emt
00:00:33] [%clk 00:13:16]} Qc6 {[%emt 00:00:26] [%clk 00:13:34]} 10. O-O {[%emt
00:00:37] [%clk 00:12:48]} Be7 {[%emt 00:01:15] [%clk 00:12:29]} 11. Re1 {[%emt
00:00:47] [%clk 00:12:11]} O-O {[%emt 00:00:17] [%clk 00:12:23]} 12. e4 {[%emt
00:00:14] [%clk 00:12:07]} b5 {[%emt 00:01:17] [%clk 00:11:16]} 13. Rc1 {[%emt
00:01:50] [%clk 00:10:27]} dxe4 {[%emt 00:00:45] [%clk 00:10:41]} 14. Nxe4
{[%emt 00:00:10] [%clk 00:10:27]} Bb7 {[%emt 00:00:33] [%clk 00:10:18]} 15. dxc5
{[%emt 00:01:33] [%clk 00:09:04]} Nxc5 {[%emt 00:00:54] [%clk 00:09:34]} 16.
Nxc5 {[%emt 00:01:48] [%clk 00:07:26]} Bxc5 {[%emt 00:00:11] [%clk 00:09:32]}
17. Be3 {[%emt 00:00:52] [%clk 00:06:44]} Rfd8 {[%emt 00:00:03] [%clk 00:09:39]}
18. Qe2 {[%clk 00:06:53]} Bxe3 {[%emt 00:00:28] [%clk 00:09:21]} 19. Qxe3 {[%emt
00:00:19] [%clk 00:06:44]} Rd5 {[%emt 00:00:58] [%clk 00:08:33]} 20. Red1 {[%emt
00:00:13] [%clk 00:06:42]} Rad8 {[%emt 00:00:09] [%clk 00:08:34]} 21. Rxd5
{[%emt 00:00:08] [%clk 00:06:44]} Rxd5 {[%emt 00:00:44] [%clk 00:08:00]} 22. Ne1
{[%emt 00:00:04] [%clk 00:06:50]} h6 {[%emt 00:00:38] [%clk 00:07:32]} 23. f3
{[%emt 00:00:25] [%clk 00:06:35]} Qd6 {[%emt 00:00:02] [%clk 00:07:40]} 24. Rc2
{[%emt 00:04:06] [%clk 00:02:39]} Re5 {[%emt 00:00:26] [%clk 00:07:24]} 25. Qc1
{[%emt 00:00:43] [%clk 00:02:06]} Qc5+ {[%emt 00:00:08] [%clk 00:07:26]} 26. Kh1
{[%emt 00:00:27] [%clk 00:01:49]} Qc4 {[%emt 00:02:05] [%clk 00:05:32]} 27. Rf2
{[%clk 00:01:59]} Qf4 {[%emt 00:01:22] [%clk 00:04:20]} 28. Qd1 {[%emt 00:00:49]
[%clk 00:01:20]} Qe3 {[%emt 00:00:32] [%clk 00:03:58]} 29. Qd8+ {[%emt 00:00:24]
[%clk 00:01:06]} Kh7 {[%emt 00:00:02] [%clk 00:04:06]} 30. Qd3+ {[%emt 00:00:01]
[%clk 00:01:15]} f5 {[%emt 00:00:07] [%clk 00:04:09]} 31. Qxe3 {[%emt 00:00:01]
[%clk 00:01:23]} Rxe3 {[%clk 00:04:18]} 32. Nc2 {[%emt 00:00:08] [%clk
00:01:25]} Rd3 {[%emt 00:00:02] [%clk 00:04:26]} 33. h3 {[%emt 00:00:12] [%clk
00:01:23]} e5 {[%emt 00:00:04] [%clk 00:04:33]} 34. Nb4 {[%emt 00:00:11] [%clk
00:01:23]} Rd1+ {[%emt 00:00:05] [%clk 00:04:37]} 35. Kh2 {[%emt 00:00:11] [%clk
00:01:22]} g5 {[%emt 00:00:39] [%clk 00:04:07]} 36. Re2 {[%emt 00:00:08] [%clk
00:01:25]} e4 {[%emt 00:01:17] [%clk 00:03:01]} 37. fxe4 {[%emt 00:00:02] [%clk
00:01:32]} fxe4 {[%emt 00:00:03] [%clk 00:03:08]} 38. Kg3 {[%emt 00:00:23] [%clk
00:01:19]} Kg6 {[%emt 00:00:14] [%clk 00:03:03]} 39. Nc2 {[%emt 00:00:23] [%clk
00:01:07]} h5 {[%emt 00:00:06] [%clk 00:03:07]} 40. Ne3 {[%emt 00:00:18] [%clk
00:00:59]} Rd3 {[%emt 00:00:01] [%clk 00:03:16]} 41. Kf2 {[%emt 00:00:01] [%clk
00:01:08]} Bc8 {[%emt 00:00:33] [%clk 00:02:53]} 42. c4 {[%emt 00:00:15] [%clk
00:01:03]} Be6 {[%emt 00:00:38] [%clk 00:02:24]} 43. cxb5 {[%emt 00:00:33] [%clk
00:00:41]} axb5 {[%emt 00:00:01] [%clk 00:02:33]} 44. b3 {[%emt 00:00:04] [%clk
00:00:47]} h4 {[%emt 00:00:32] [%clk 00:02:11]} 45. Rc2 {[%emt 00:00:05] [%clk
00:00:52]} Kf6 {[%emt 00:00:15] [%clk 00:02:06]} 46. Ke2 {[%emt 00:00:08] [%clk
00:00:54]} Ke5 {[%emt 00:00:11] [%clk 00:02:05]} 47. Rc5+ {[%emt 00:00:23] [%clk
00:00:41]} Kd4 {[%clk 00:01:49]} 0-1

[Site "Europe Echecs"]